[Event "Italian-ch Juniors U20 2022"]
[Site "Cagliari"]
[Date "2022.11.18"]
[Round "2.2"]
[White "Bin-Suhayl, Ieysaa"]
[Black "Bettalli, Francesco"]
[Result "0-1"]
[ECO "A88"]
[WhiteElo "2230"]
[BlackElo "2211"]
[Annotator "TA"]
[PlyCount "64"]
[EventDate "2022.11.17"]
[EventType "tourn"]
[EventCountry "ITA"]
[SourceTitle "playchess.com"]
[Source "ChessBase"]
[SourceQuality "1"]
[TimeControl "40/6000+30:20/3000:900+30"]

{[%evp 17,64,6,24,26,27,26,47,42,72,72,70,51,432,-125,-129,-288,-168,-335,-329,-466,-406,-538,-213,-192,-158,-271,-253,-221,-154,-403,-260,-244,-245,-335,-264,-294,-289,-328,-306,-398,-311,-486,-485,-495,-493,-499,-417,-419,-411]} 1. d4 {[%emt 0:03:35]} f5 {[%emt 0:00:48]} 2. g3 {[%emt 0:01:48]} Nf6 {[%emt 0:00:12]} 3. c4 {[%emt 0:02:00]} g6 {[%emt 0:00:15]} 4. Bg2 {[%emt 0:00:44]} Bg7 {[%emt 0:00:15]} 5. Nf3 {[%emt 0:03:18]} d6 {[%emt 0:00:28]} 6. O-O {[%emt 0:00:16]} O-O {[%emt 0:00:06]} 7. Nc3 {[%emt 0:00:40]} c6 {[%emt 0:00:10]} 8. b3 {[%emt 0:02:41]} Qc7 {[%emt 0:00:06]} 9. Qc2 {[%emt 0:04:53]} e5 {[%emt 0:00:46]} 10. dxe5 {[%emt 0:00:08] A88: Dutch Defence: Leningrad System: 5 Nf3 0-0 6 0-0 d6 7 Nc3 c6.} dxe5 {[%emt 0:00:04]} 11. e4 {[%emt 0:00:34]} f4 {[%emt 0:02:22]} 12. Ba3 {[%emt 0:02:39] [#] White is slightly better.} fxg3 $146 {[%emt 0:06:28]} ({Predecessor:} 12... Re8 13. Rad1 Bg4 14. Bd6 Qc8 15. gxf4 Nh5 16. Ne2 exf4 17. c5 h6 18. Nh4 g5 {1-0 (58) Harutyunian,T (2421)-Paravyan,D (2417) Kirishi 2014}) 13. fxg3 {[%emt 0:15:32]} Re8 {[%emt 0:01:18]} 14. h3 {[%emt 0:06:39]} Bxh3 $2 {[%emt 0:00:30][%mdl 8192] [#]} 15. Bb2 $2 {[%emt 0:03:35]} (15. Bxh3 $18 Na6 16. Ng5) 15... Bc8 $17 {[%emt 0:17:17]} 16. Kh2 $2 {[%emt 0:03:40]} (16. Nd1 $17) 16... Nbd7 {[%emt 0:03:13]} (16... Ng4+ $142 17. Kg1 Ne3) 17. Rf2 $2 {[%emt 0:02:04]} (17. Rae1) 17... Nc5 {[%emt 0:11:56]} 18. b4 {[%emt 0:02:31]} (18. Kh1 $142) 18... Ne6 {[%emt 0:01:17]} 19. Rd1 {[%emt 0:06:14]} Nh5 $2 {[%emt 0:04:37] [#]} (19... Nd4 20. Nxd4 Ng4+ 21. Kg1 exd4) 20. Ne2 $19 {[%emt 0:02:03]} a5 {[%emt 0:01:11]} 21. a3 {[%emt 0:01:57]} (21. b5 $17) 21... axb4 {[%emt 0:00:58]} 22. axb4 {[%emt 0:00:06]} b6 {[%emt 0:09:26] And now ...Nf6 would win.} 23. g4 $2 {[%emt 0:17:26]} (23. Kg1 $17 {keeps fighting.}) 23... Nhf4 {[%emt 0:00:32]} 24. Nxf4 {[%emt 0:00:10]} Nxf4 {[%emt 0:02:55]} (24... exf4 25. e5 $17) 25. Rfd2 {[%emt 0:00:06]} Ne6 {[%emt 0:03:12]} 26. Kh1 {[%emt 0:28:11]} c5 {[%emt 0:43:08]} 27. Qc3 {[%emt 0:00:00]} Nd4 28. Qd3 {[%emt 0:01:00]} Ra4 {[%emt 0:01:00]} (28... cxb4 $2 {too greedy.} 29. Nxd4 exd4 30. e5 $19) 29. Nxd4 {[%emt 0:00:00]} (29. bxc5 {might work better.} bxc5 30. g5) 29... exd4 30. bxc5 {[%emt 0:01:00]} bxc5 {[%emt 0:01:00]} (30... Bxg4 $2 31. cxb6 Qxb6 32. Rf1 $19) 31. Qc2 {[%emt 0:00:00]} Qa7 32. e5 {[%emt 0:00:00]} Be6 {[%emt 0:00:00] Weighted Error Value: White=0.85/Black=0.84} (32... Bxe5 $2 {loses.} 33. Bd5+ Kh8 34. Re1 Bxg4 35. Rf2 $19) (32... Rxe5 $2 {is the wrong capture.} 33. Re2 Bb7 34. Rxe5 Bxe5 35. Qe2 Bxg2+ 36. Kxg2 $19) 0-1

[Event "Italian-ch Juniors U20 2022"]
[Site "Cagliari"]
[Date "2022.11.18"]
[Round "2.3"]
[White "Orfini, Nicolo`"]
[Black "Rindone, Andrea"]
[Result "1/2-1/2"]
[ECO "C10"]
[WhiteElo "2227"]
[BlackElo "2104"]
[Annotator "TA"]
[PlyCount "140"]
[EventDate "2022.11.17"]
[EventType "tourn"]
[EventCountry "ITA"]
[SourceTitle "playchess.com"]
[Source "ChessBase"]
[SourceQuality "1"]
[TimeControl "40/6000+30:20/3000:900+30"]

{[%evp 9,140,22,50,51,75,20,10,0,27,24,56,57,202,148,291,223,357,369,463,473,477,11,20,10,22,14,580,573,559,-101,-100,-126,-131,-183,-152,-149,-144,-260,-260,-269,-159,-249,-259,-404,-128,-135,40,42,41,38,47,-47,2,-22,-16,-17,-22,-17,394,0,6,-124,-124,-124,-106,-791,-76,-162,0,0,0,0,0,0,0,0,0,0,0,0,0,6,0,6,0,0,63,63,70,70,94,77,1461,77,77,77,77,77,77,77,77,77,77,77,94,94,94,94,94,77,94,27,94,94,94,8,94,0,94,77,94,77,77,77,94,94,94,8,8,8,8,8,8]} 1. e4 {[%emt 0:00:02]} e6 {[%emt 0:02:56]} 2. d4 {[%emt 0:00:08]} d5 {[%emt 0:00:03]} 3. Nc3 {[%emt 0:00:07]} h6 {[%emt 0:00:38]} 4. exd5 {[%emt 0:11:54]} exd5 {[%emt 0:00:08]} 5. Bd3 {[%emt 0:00:06]} c5 {[%emt 0:03:16]} 6. dxc5 {[%emt 0:04:09] C10: French with 3 Nc3: Unusual Black 3rd moves and 3...dxe4.} Nc6 {[%emt 0:04:38]} 7. Bf4 {[%emt 0:13:28]} ({Better is} 7. Na4 $16) 7... Bxc5 $11 {[%emt 0:02:56]} 8. Nb5 {[%emt 0:05:16]} Bb6 {[%emt 0:13:58] Prevents Nc7+.} 9. Ne2 {[%emt 0:25:34] [#] Active counter play!} g5 $146 {[%emt 0:08:03]} (9... Nf6 {looks sharper.} 10. Nd6+ Kf8 11. O-O Nh5) ({Predecessor:} 9... Nf6 10. Nd6+ Kf8 11. Nxc8 Rxc8 12. O-O g6 13. c3 Kg7 14. Qb3 Re8 15. Rad1 Nh5 {0-1 (28) Fernandez,F (2410)-Cordova,E (2602) Montcada 2016}) 10. Bg3 {[%emt 0:01:31]} Nge7 {[%emt 0:00:49]} (10... Nf6 $1 $14) 11. Qd2 {[%emt 0:07:20]} f5 {[%emt 0:05:43]} (11... O-O $16 {was called for.}) 12. O-O-O {[%emt 0:03:07]} O-O {[%emt 0:11:00]} (12... f4 {keeps fighting.}) 13. h4 $1 $18 {[%emt 0:08:11]} f4 {[%emt 0:00:20]} 14. hxg5 {[%emt 0:00:28]} fxg3 {[%emt 0:01:06]} 15. g6 $2 {[%emt 0:00:07]} (15. gxh6 Kh8 16. fxg3 (16. Qg5 $2 Nf5 $17) 16... a6 $15) (15. Rxh6 $18 Nf5 16. Bxf5 (16. Rg6+ Ng7 $16) 16... Rxf5 17. f4) 15... Nf5 $11 {[%emt 0:03:47]} 16. Bxf5 {[%emt 0:10:02] The board is on fire.} Rxf5 {[%emt 0:00:08]} 17. Nxg3 {[%emt 0:00:19]} Rg5 {[%emt 0:19:15][%mdl 8192]} (17... Re5 $11) 18. Rxh6 $18 {[%emt 0:03:33] aiming for Rdh1.} Qf6 {[%emt 0:02:57][%cal Of6f2]} 19. Nh5 $2 {[%emt 0:01:21]} (19. Rdh1 $18 {[%cal Oh6h8] Threatening mate with Rh8+!} Rxg6 20. Rxg6+ Qxg6 21. Rh6) 19... Qxf2 $17 {[%emt 0:02:27]} 20. Qxf2 {[%emt 0:04:33]} Bxf2 {[%emt 0:00:08]} 21. Nc7 {[%emt 0:09:44] [#]} (21. Kb1 $17) 21... Bg4 $1 {[%emt 0:12:09]} 22. Nf6+ {[%emt 0:00:00]} Kg7 {[%emt 0:00:17]} 23. Rdh1 {[%emt 0:00:00]} (23. Nxg4 $17 {was the only defense.} Rxg4 24. Rh3) 23... Kxf6 $19 {[%emt 0:05:44]} 24. Nxa8 {[%emt 0:00:00]} Be3+ {[%emt 0:02:43]} (24... Rxg6 25. Rxg6+ Kxg6 26. Nc7 $17) 25. Kb1 {[%emt 0:00:00]} Bf5 $1 {[%emt 0:00:37][%mdl 1024] Black has strong compensation. A strong pair of Bishops.} (25... Rxg6 26. Rxg6+ Kxg6 27. Nc7 $17) 26. Rf1 {[%emt 0:00:00]} (26. Nc7 $142 Bxg6 27. Re1) 26... Nd4 $2 {[%emt 0:02:43]} (26... Rxg2 $19 {and Black stays clearly on top.} 27. Rh5 Bg5) 27. Rh3 $17 {[%emt 0:00:00]} Bd2 {[%emt 0:02:35]} (27... Kxg6 $6 28. Rxe3 Rxg2 29. Re8 Rxc2 30. Rg8+ Kh7 31. Rxf5 $11) (27... Nxc2 $17 28. Rxf5+ Kxf5 29. Kxc2 Rxg2+ 30. Kd3 Bf4) 28. Rd3 $14 {[%emt 0:00:00]} Rxg2 {[%emt 0:02:22] Strongly threatening ...Ke5.} 29. Rxd4 {[%emt 0:00:00] And now Nc7 would win.} Ke5 {[%emt 0:00:25] [#]} 30. Rh4 {[%emt 0:02:52] [#]} (30. Rxf5+ $1 $14 Kxf5 31. c3) 30... Bg5 {[%emt 0:00:39]} (30... Bxc2+ $1 $15 {feels stronger.} 31. Ka1 (31. Kxc2 Bg5+) 31... Bxg6) 31. Re1+ {[%emt 0:01:04]} Kd6 {[%emt 0:00:38]} 32. Rh7 $1 {[%emt 0:00:52]} Rxc2 {[%emt 0:00:29][%csl Gg5][%cal Rc2c1]} 33. Ka1 {[%emt 0:00:14][%cal Oa8c7] Black must now prevent Nc7!} Rc8 {[%emt 0:00:51][%mdl 8192] [#] Against Nc7} (33... Bd2 $11 34. Rf1 Bxg6 35. Rxb7 Bd3) 34. Rf7 $2 {[%emt 0:00:11]} ({White must play} 34. Nc7 $1 $18 {[%mdl 512]}) 34... Be6 {[%emt 0:00:30] [#]} (34... Bxg6 35. Rg7 Be4 36. Rxg5 $16) 35. Nc7 {[%emt 0:01:12]} Bxf7 $17 {[%emt 0:00:27]} 36. Nb5+ {[%emt 0:00:01]} Kc5 {[%emt 0:00:26]} 37. Nxa7 $2 {[%emt 0:00:01][%mdl 8192]} (37. gxf7 $17 Kxb5 38. a4+ Kxa4 39. Re8 Rc1+ 40. Ka2) 37... Rf8 $2 {[%emt 0:00:36]} (37... Re8 $19 {[%cal Re8e1]} 38. b4+ Kxb4 39. Rb1+ Kc4) 38. Rf1 {[%emt 0:01:13] [#]} (38. gxf7 $17 Kb6 39. Rg1) 38... Bh6 $1 {[%emt 0:00:29]} 39. Rxf7 {[%emt 0:00:18]} Rxf7 {[%emt 0:00:31]} 40. gxf7 $11 {[%emt 0:00:03][%mdl 4096] Endgame KB-KN} Bf8 {[%emt 0:00:30]} 41. a4 {[%emt 0:49:10]} Kd6 {[%emt 0:02:27]} 42. Nb5+ {[%emt 0:00:00]} Ke7 {[%emt 0:00:03]} 43. Kb1 {[%emt 0:00:00]} Kxf7 {[%emt 0:00:00]} 44. Nc7 {[%emt 0:00:00]} d4 {[%emt 0:00:00]} 45. Kc2 {[%emt 0:00:00]} Kf6 {[%emt 0:00:42]} 46. Kd3 {[%emt 0:00:00]} Ke5 {[%emt 0:00:00]} 47. Nb5 {[%emt 0:00:00]} Bc5 {[%emt 0:00:00]} (47... Kd5 $11) 48. Kc4 $1 $14 {[%emt 0:00:00]} Bf8 {[%emt 0:01:50][%cal Od4d3]} 49. Nxd4 {[%emt 0:00:00]} Kd6 {[%emt 0:00:00]} 50. Kb5 {[%emt 0:00:00]} Kd5 $2 {[%emt 0:00:00][%mdl 8192]} (50... Kd7 $16) 51. Nc2 $2 {[%emt 0:00:00]} (51. Ne2 $18 {White wants to mate with Nf4+.} Be7 52. Nc3+ (52. Kb6 Kc4 $11) 52... Kd4 53. a5 (53. Kb6 Kc4 $11)) 51... Bc5 $16 {[%emt 0:00:15]} 52. Na3 {[%emt 0:00:00]} Bd4 {[%emt 0:10:04]} 53. Nc4 {[%emt 0:00:00] White threatens b4 and mate.} (53. b3 $5 {[%cal Ra3c4]} Kd6 54. a5 $16) 53... Ke6 {[%emt 0:00:00]} 54. b4 {[%emt 0:00:00] Na5 would kill now.} Kd7 {[%emt 0:00:00]} 55. a5 {[%emt 0:00:00]} Kc7 {[%emt 0:00:00]} 56. Nd2 {[%emt 0:00:00]} Kb8 {[%emt 0:00:00]} 57. Ne4 {[%emt 0:00:00]} Ka7 {[%emt 0:00:45]} 58. Nd6 {[%emt 0:00:00]} Bc3 {[%emt 0:00:31]} 59. Nc8+ {[%emt 0:00:00]} Kb8 {[%emt 0:00:00] [#]} 60. Ne7 {[%emt 0:00:00]} (60. Nb6 $1 $16) 60... Ka7 {[%emt 0:00:22]} (60... Be1 $1 $11 {keeps the balance.}) 61. Nd5 {[%emt 0:00:00]} Be1 {[%emt 0:16:06]} 62. Kc5 {[%emt 0:00:00]} ({White should try} 62. Ka4 $16) 62... Bf2+ {[%emt 0:00:12]} (62... Ka6 $11 {remains equal.}) 63. Kb5 {[%emt 0:00:00]} (63. Kc4 $16) 63... Bg1 {[%emt 0:00:27]} (63... Be1 $1 $11) 64. Ne7 {[%emt 0:00:00]} Bf2 {[%emt 0:00:37]} 65. Nc8+ {[%emt 0:00:00]} Kb8 {[%emt 0:00:14]} 66. Nd6 {[%emt 0:00:00]} Ka7 {[%emt 0:00:20]} 67. Nc4 {[%emt 0:00:00]} Bg1 {[%emt 0:00:47]} 68. Na3 {[%emt 0:00:00]} (68. Ka4 $16) 68... Bf2 $11 {[%emt 0:00:24] The position is equal.} 69. Kc4 {[%emt 0:00:00]} b6 {[%emt 0:01:09]} 70. Nb5+ {[%emt 0:00:00]} Ka6 {[%emt 0:01:12] What a fight!  Weighted Error Value: White=0.65/Black=0.65} 1/2-1/2

[Event "Italian-ch Juniors U20 2022"]
[Site "Cagliari"]
[Date "2022.11.18"]
[Round "2.4"]
[White "Cappelletto, Joshuaede"]
[Black "Lumachi, Gabriele"]
[Result "1/2-1/2"]
[ECO "B43"]
[WhiteElo "2265"]
[BlackElo "2394"]
[Annotator "TA"]
[PlyCount "51"]
[EventDate "2022.11.17"]
[EventType "tourn"]
[EventCountry "ITA"]
[SourceTitle "playchess.com"]
[Source "ChessBase"]
[SourceQuality "1"]
[TimeControl "40/6000+30:20/3000:900+30"]

{[%evp 13,51,35,30,20,24,0,20,0,16,-18,-21,-29,-30,-25,58,54,66,69,129,111,142,111,160,161,230,110,158,157,158,148,171,126,176,142,142,85,72,28,67,4]} 1. e4 {[%emt 0:01:10]} c5 {[%emt 0:00:23]} 2. Nf3 {[%emt 0:00:39][%cal Bg1f3,Bf3d4,Bd4b3][%mdl 32]} e6 {[%emt 0:00:07]} 3. Nc3 {[%emt 0:01:01]} a6 {[%emt 0:00:18]} 4. d4 {[%emt 0:00:07]} cxd4 {[%emt 0:00:04]} 5. Nxd4 {[%emt 0:00:05]} b5 {[%emt 0:00:11]} 6. Bd3 {[%emt 0:04:14]} Bb7 {[%emt 0:00:09]} 7. O-O {[%emt 0:01:24]} Nc6 {[%emt 0:00:05]} 8. Nb3 {[%emt 0:01:01] B43: Sicilian: Kan Variation: 5 Nc3.} d6 {[%emt 0:19:05]} 9. Qe2 {[%emt 0:13:46] [#]} Ne5 $146 {[%emt 0:14:37]} ({Predecessor:} 9... Be7 10. Bd2 Nf6 11. a4 b4 12. Na2 a5 13. c3 d5 14. exd5 Nxd5 15. c4 Nf6 {1-0 (54) Aldokhin,I (2413)-Langner,L (2374) Chess.com INT 2022}) 10. a3 {[%emt 0:22:20] The position is equal.} Nf6 {[%emt 0:19:33]} 11. Bg5 {[%emt 0:13:32]} Be7 {[%emt 0:51:28]} 12. Rad1 {[%emt 0:00:35]} Rc8 {[%emt 0:00:00]} 13. Kh1 {[%emt 0:02:35]} Qc7 {[%emt 0:00:00]} (13... Nxd3 $11 14. Rxd3 {[#]} Nxe4 $1 15. Nxe4 Bxe4 16. Qxe4 Bxg5) 14. Bxf6 $14 {[%emt 0:04:45]} gxf6 {[%emt 0:00:00]} 15. f4 {[%emt 0:01:05][%cal Bf2f4,Bf4f5][%mdl 32]} Nc4 {[%emt 0:00:00]} (15... Nxd3 $14 16. Qxd3 Rg8) 16. Bxc4 $16 {[%emt 0:06:50]} Qxc4 {[%emt 0:00:00]} 17. Qg4 {[%emt 0:01:48]} Ba8 {[%emt 0:00:00]} ({Black should try} 17... Qc7) 18. f5 {[%emt 0:10:06]} Kd7 {[%emt 0:00:00]} (18... e5 {keeps fighting.} 19. Qg7 Rf8 20. Qxh7 Qc7) 19. Rf2 {[%emt 0:06:28]} (19. fxe6+ $18 {has better winning chances.} fxe6 20. Qh3) 19... Rhg8 {[%emt 0:00:00]} (19... h5 $142 20. Qf3 e5) 20. Qh3 {[%emt 0:01:07] Threatens to win with Rd4. Really sharp!} e5 {[%emt 0:00:00] Inhibits Rd4.} (20... Bxe4 $2 21. fxe6+ fxe6 22. Na5 Bxg2+ 23. Rxg2 $18) 21. Qe3 {[%emt 0:01:47]} ({Don't blunder} 21. Qxh7 $2 Rh8 22. Na5 (22. Qg7 $2 Rcg8 $19) 22... Rxh7 $19) 21... Rc7 {[%emt 0:00:00]} 22. h3 {[%emt 0:03:53]} h5 {[%emt 0:00:00]} (22... Ke8 $16 23. Qh6 b4 24. axb4 (24. Qxh7 Rxg2 25. Qh8+ Bf8 $11) 24... Qxb4) 23. Rfd2 {[%emt 0:02:45]} Ke8 {[%emt 0:00:00]} 24. Qh6 {[%emt 0:03:17]} ({Better is} 24. Re1) 24... b4 {[%emt 0:01:09]} (24... Bxe4 $2 25. Na5 Rxg2 26. Rxg2 Bxg2+ 27. Kxg2 $18) 25. axb4 {[%emt 0:04:00] Hoping for Qh7.} Bxe4 {[%emt 0:00:48]} 26. Qxh5 {[%emt 0:02:13] Weighted Error Value: White=0.26 (precise) /Black=0.27 (precise)} (26. Qh7 $14 Rf8 27. Qxh5) 1/2-1/2

[Event "Italian-ch Juniors U20 2022"]
[Site "Cagliari"]
[Date "2022.11.19"]
[Round "3.1"]
[White "Lumachi, Gabriele"]
[Black "Hercegovac, Neven"]
[Result "1-0"]
[ECO "A35"]
[WhiteElo "2394"]
[BlackElo "2230"]
[Annotator "TA"]
[PlyCount "125"]
[EventDate "2022.11.17"]
[EventType "tourn"]
[EventCountry "ITA"]
[SourceTitle "playchess.com"]
[Source "ChessBase"]
[SourceQuality "1"]
[TimeControl "40/6000+30:20/3000:900+30"]

{[%evp 22,125,27,33,28,14,29,25,28,34,58,40,54,48,52,47,62,47,51,53,47,41,42,43,60,56,62,33,30,12,23,17,19,20,52,15,33,25,27,29,25,0,88,84,94,88,141,135,230,216,317,318,314,300,308,304,308,134,136,135,129,129,131,129,142,141,133,124,184,177,242,171,174,160,169,115,223,218,247,137,207,206,194,142,162,158,211,192,212,164,176,180,177,193,201,186,215,177,179,166,814,211,812,794,762,744]} 1. Nf3 {[%emt 0:00:01]} c5 {[%emt 0:04:08]} 2. c4 {[%emt 0:00:15]} Nc6 {[%emt 0:00:20]} 3. Nc3 {[%emt 0:00:08]} g6 {[%emt 0:00:14]} 4. e3 {[%emt 0:00:12]} Nf6 {[%emt 0:00:22][%cal Bg8f6,Bf6d5,Bd5c3][%mdl 32]} 5. d4 {[%emt 0:00:12]} cxd4 {[%emt 0:00:25]} 6. exd4 {[%emt 0:00:13]} d5 {[%emt 0:00:37]} 7. cxd5 {[%emt 0:00:09]} Nxd5 {[%emt 0:00:07]} 8. Qb3 {[%emt 0:00:05]} Nxc3 {[%emt 0:01:00]} 9. Bc4 {[%emt 0:00:08]} Nd5 {[%emt 0:00:27]} 10. Bxd5 {[%emt 0:00:22]} e6 {[%emt 0:00:02]} 11. Bxc6+ {[%emt 0:00:23]} bxc6 {[%emt 0:00:02]} 12. O-O {[%emt 0:00:18]} Qd5 {[%emt 0:00:11] A35: Symmetrical English: 2 Nc3 Nc6 3 Nf3.} 13. Be3 {[%emt 0:00:13]} f6 {[%emt 0:05:07]} 14. Rfc1 {[%emt 0:00:05]} Bd6 {[%emt 0:10:48] White has an edge.} 15. Nd2 {[%emt 0:01:19][%cal Bf3d2,Bd2e4,Be4c5][%mdl 32]} Bd7 {[%emt 0:13:02]} 16. Qc2 {[%emt 0:00:46]} Kf7 {[%emt 0:01:12]} 17. Ne4 {[%emt 0:00:46]} Be7 {[%emt 0:05:25]} 18. f3 {[%emt 0:04:44] [#]} g5 $146 {[%emt 0:08:24]} ({Predecessor:} 18... Rhb8 19. Qf2 h5 20. Nc5 a5 21. b3 Bc8 22. Rc2 Qf5 23. Rac1 g5 24. Ne4 Bd7 {½-½ (41) Belov,I (2407)-Alekseev,E (2653) Sochi 2015}) 19. Nc5 {[%emt 0:06:20]} Be8 {[%emt 0:01:32]} 20. Bf2 {[%emt 0:18:21]} Kg7 {[%emt 0:18:10]} 21. Qe2 {[%emt 0:01:42]} Bf7 {[%emt 0:01:17]} 22. b3 {[%emt 0:00:53]} Rhd8 {[%emt 0:04:29]} 23. Rc2 {[%emt 0:05:14]} Re8 {[%emt 0:05:52]} 24. Re1 {[%emt 0:08:10]} Bd8 {[%emt 0:01:19]} 25. Na6 {[%emt 0:05:05]} Rc8 {[%emt 0:11:01]} 26. Rec1 {[%emt 0:03:36]} Qd6 {[%emt 0:00:28] Prevents Nb4.} 27. Qd2 {[%emt 0:05:52]} Bg6 {[%emt 0:05:01]} 28. Bg3 {[%emt 0:05:24]} Qd7 {[%emt 0:05:21]} 29. Nc5 {[%emt 0:04:50]} Qd5 {[%emt 0:00:17]} 30. Rc4 {[%emt 0:00:19]} e5 {[%emt 0:01:31]} 31. Qb4 {[%emt 0:03:56]} Bb6 {[%emt 0:00:45]} (31... a5 $11 {remains equal.} 32. Qb7+ Rc7) 32. dxe5 $16 {[%emt 0:01:00]} fxe5 {[%emt 0:00:14]} 33. Kh1 {[%emt 0:05:57]} h5 {[%emt 0:02:18] [#]} (33... h6 $142) 34. h4 $1 {[%emt 0:04:36]} Bd8 {[%emt 0:01:40] [#]} (34... gxh4 $16 35. Bxh4 Qd6) 35. Qe1 $1 $18 {[%emt 0:00:54]} Bf6 {[%emt 0:02:41]} (35... Bc7 $142 36. hxg5 e4) 36. Rd1 {[%emt 0:08:08]} Qf7 {[%emt 0:00:18]} 37. Rd7 {[%emt 0:08:09]} Re7 {[%emt 0:00:17]} 38. hxg5 {[%emt 0:00:24]} Bxg5 {[%emt 0:01:10]} 39. Qxe5+ {[%emt 0:03:33]} (39. Bxe5+ $18 {is more deadly.} Kg8 40. Rxe7 Qxe7 41. Qg3) 39... Rxe5 $16 {[%emt 0:01:43]} 40. Bxe5+ {[%emt 0:01:06]} Kg8 {[%emt 0:00:18]} 41. Rxf7 {[%emt 0:49:10] White has more active pieces.} Bxf7 {[%emt 0:49:45] A strong pair of Bishops.} 42. Ra4 {[%emt 0:00:17]} Rd8 {[%emt 0:00:00]} 43. Bf4 {[%emt 0:00:00]} Bf6 {[%emt 0:00:00]} 44. Rxa7 {[%emt 0:00:00]} Rd4 {[%emt 0:00:00]} (44... Rd1+ $16 {might work better.} 45. Kh2 Bd4) 45. Ne4 $18 {[%emt 0:00:00]} Rd1+ {[%emt 0:00:00]} 46. Kh2 {[%emt 0:00:00]} Bd4 {[%emt 0:00:00]} 47. Ra8+ {[%emt 0:00:00]} Kg7 {[%emt 0:00:00]} 48. Ra4 {[%emt 0:00:00]} (48. Nd6 $18) 48... c5 {[%emt 0:00:00]} (48... Kg6 $16 {was necessary.} 49. Kg3 Bd5) 49. Ra5 {[%emt 0:00:00]} h4 {[%emt 0:00:00]} 50. Ra6 {[%emt 0:00:00] Against Be6} (50. Nxc5 $18 {Ne4 is the strong threat.} Kg6 51. Ne4) 50... Bg6 {[%emt 0:00:00]} (50... Bd5 $16 51. Bg5 c4) 51. Ra7+ {[%emt 0:00:00]} Kg8 {[%emt 0:00:00]} 52. Nd6 {[%emt 0:00:00] Prevents Bf5.} (52. Kh3 $18) 52... Bh5 {[%emt 0:00:00]} 53. Nf5 {[%emt 0:00:00]} Bg1+ {[%emt 0:00:00]} 54. Kh3 {[%emt 0:00:00]} Bf2 {[%emt 0:00:00]} 55. g4 {[%emt 0:00:00]} hxg3 {[%emt 0:00:00]} 56. Bxg3 {[%emt 0:00:00]} Bd4 {[%emt 0:00:00]} 57. Nh6+ {[%emt 0:00:00]} Kf8 {[%emt 0:00:00]} 58. Bd6+ {[%emt 0:00:27]} Ke8 {[%emt 0:00:00]} 59. Re7+ {[%emt 0:01:52]} Kd8 {[%emt 0:00:00]} 60. Nf7+ {[%emt 0:02:32]} Kc8 $2 {[%emt 0:00:00]} (60... Bxf7 61. Rxf7 Rd2) 61. Rc7+ {[%emt 0:16:07]} Kb8 {[%emt 0:00:00]} 62. Rxc5+ {[%emt 0:00:24]} Kb7 {[%emt 0:00:00]} 63. Rxh5 {[%emt 0:00:12] Weighted Error Value: White=0.15 (very precise) /Black=0.21 (precise)} 1-0